fUSD/lending_fUSD_20240924
["ID","MTS","AMOUNT","RATE_DAILY","PERIOD"]
[339039046,1727163555423,939.0,0.00013123,120]
[339039047,1727163555943,939.0,0.00013143,120]
[339039048,1727163556409,939.0,0.00013133,120]
[339039049,1727163556870,939.0,0.00013143,120]
[339039050,1727163557319,947.0,0.00013133,120]
[339039051,1727163582390,1255.0,0.00022,120]
[339039053,1727163658353,218.27,9.779e-05,2]
[339039054,1727163673635,157.1,0.00013143,120]
[339039055,1727163825206,150.0,0.00015,60]
[339039056,1727163825431,150.0,0.00016,60]
[339039057,1727163825804,150.0,0.00017,60]
[339039058,1727163826246,150.0,0.00018,60]
[339039059,1727163826648,150.0,0.00019,60]
[339039060,1727163827052,181.416323,0.0002,60]
[339039061,1727163827851,150.0,0.0002,120]
[339039062,1727163828309,160.472107,0.00021,120]
[339039063,1727163904174,150.0,0.00022,120]
[339039064,1727163904864,150.0,0.00022,120]
[339039065,1727163905410,150.0,0.00022,120]
[339039066,1727163905897,150.0,0.00022,120]
[339039067,1727163906444,150.0,0.00022,120]
[339039068,1727163906773,150.0,0.00022,120]
[339039069,1727163907129,150.0,0.00022,120]
[339039070,1727163907901,150.0,0.00022,120]
[339039071,1727163908256,150.0,0.00022,120]
[339039072,1727163908997,150.0,0.00022,120]
[339039073,1727163909138,150.0,0.00022,120]
[339039074,1727163909708,150.0,0.00022,120]
[339039075,1727163910250,150.0,0.00022,120]
[339039076,1727163910827,150.0,0.00022,120]
[339039077,1727163911164,150.0,0.00022,120]
[339039078,1727163911655,150.0,0.00022,120]
[339039079,1727163912237,150.0,0.00022,120]
[339039080,1727163912820,150.0,0.00022,120]
[339039081,1727163913351,150.0,0.00022,120]
[339039082,1727163913661,150.0,0.00022,120]
[339039083,1727163914076,150.0,0.00022,120]
[339039084,1727163914510,150.0,0.00022,120]
[339039085,1727163914815,150.0,0.00022,120]
[339039086,1727163915452,150.0,0.00022,120]
[339039087,1727163916032,150.0,0.00022,120]
[339039088,1727163916579,150.0,0.00022,120]
[339039089,1727163917136,150.0,0.00022,120]
[339039090,1727163918144,150.0,0.00022,120]
[339039091,1727163918302,150.0,0.00022,120]
[339039092,1727163918462,150.0,0.00022,120]
[339039093,1727163918606,150.0,0.00022,120]
[339039094,1727163919162,150.0,0.00022,120]
[339039095,1727163919515,150.0,0.00022,120]
[339039096,1727163920060,150.0,0.00022,120]
[339039097,1727163920621,150.0,0.00022,120]
[339039098,1727163921137,150.0,0.00022,120]
[339039099,1727163921540,150.0,0.00022,120]
[339039100,1727163922049,150.0,0.00022,120]
[339039101,1727163922647,150.0,0.00022,120]
[339039102,1727163923437,150.0,0.00022,120]
[339039103,1727163923606,150.0,0.00022,120]
[339039104,1727163923826,150.0,0.00022,120]
[339039105,1727163924473,150.0,0.00022,120]
[339039106,1727163925038,150.0,0.00022,120]
[339039107,1727163925704,150.0,0.00022,120]
[339039108,1727163926203,150.0,0.00022,120]
[339039109,1727163926768,150.0,0.00022,120]
[339039110,1727163927354,150.0,0.00022,120]
[339039111,1727163927848,150.0,0.00022,120]
[339039112,1727163928487,150.0,0.00022,120]
[339039113,1727163928732,150.0,0.00022,120]
[339039114,1727163929337,150.0,0.00022,120]
[339039115,1727163930029,150.0,0.00022,120]
[339039116,1727163930452,150.0,0.00022,120]
[339039117,1727163931333,150.0,0.00022,120]
[339039118,1727163931910,150.0,0.00022,120]
[339039119,1727163932175,150.0,0.00022,120]
[339039120,1727163932739,150.0,0.00022,120]
[339039121,1727163933039,150.0,0.00022,120]
[339039122,1727163933620,150.0,0.00022,120]
[339039123,1727163933748,150.0,0.00022,120]
[339039124,1727163934189,150.0,0.00022,120]
[339039125,1727163934794,150.0,0.00022,120]
[339039126,1727163935058,150.0,0.00022,120]
[339039127,1727163935605,150.0,0.00022,120]
[339039128,1727163936154,150.0,0.00022,120]
[339039129,1727163936460,150.0,0.00022,120]
[339039130,1727163937005,150.0,0.00022,120]
[339039131,1727163937562,150.0,0.00022,120]
[339039132,1727163938383,150.0,0.00022,120]
[339039133,1727163957605,150.0,0.00022,120]
[339039134,1727163957991,150.0,0.00022,120]
[339039135,1727163958594,150.0,0.00022,120]
[339039136,1727163958907,150.0,0.00022,120]
[339039137,1727163959462,150.0,0.00022,120]
[339039138,1727163959552,150.0,0.00022,120]
[339039139,1727163959825,150.0,0.00022,120]
[339039140,1727163960184,150.0,0.00022,120]
[339039141,1727163960755,150.0,0.00022,120]
[339039142,1727163961041,150.0,0.00022,120]
[339039143,1727163961893,150.0,0.00022,120]
[339039144,1727163962269,150.0,0.00022,120]
[339039145,1727163962836,150.0,0.00022,120]
[339039146,1727163963449,150.0,0.00022,120]
[339039147,1727163966740,150.0,0.00022,120]
[339039148,1727163966924,150.0,0.00022,120]
[339039149,1727163967495,150.0,0.00022,120]
[339039150,1727163968008,150.0,0.00022,120]
[339039151,1727163968417,150.0,0.00022,120]
[339039152,1727163969031,150.0,0.00022,120]
[339039153,1727163969337,150.0,0.00022,120]
[339039154,1727163969939,150.0,0.00022,120]
[339039155,1727163975684,733.86978793,0.00022,120]
[339039156,1727163975870,150.0,0.00022,120]
[339039157,1727163976181,150.0,0.00022,120]
[339039158,1727163976484,150.0,0.00022,120]
[339039159,1727163976825,150.0,0.00022,120]
[339039160,1727163977459,150.0,0.00022,120]
[339039161,1727163986850,384.1657168,0.00022,120]
[339039358,1727164122056,150.0,0.00015,60]
[339039359,1727164122502,160.47211,0.00016,60]
[339039360,1727164123535,150.0,0.0002,120]
[339039361,1727164123964,160.472107,0.00021,120]
[339039362,1727164169609,510.0,0.00021917,120]
[339039363,1727164211853,207.35,9.815e-05,2]
[339039365,1727164232148,-250.0,0.00011694,2]
[339039366,1727164232158,-48.25294,0.00011698,2]
[339039367,1727164232169,-201.74706,0.00011698,2]
[339039368,1727164232179,-135.61617209,0.00011714,2]
[339039369,1727164232191,-864.38382791,0.00011714,2]
[339039370,1727164232200,-203.84,0.0001172,2]
[339039371,1727164232212,-152.09,0.0001178,2]
[339039372,1727164232221,-916.05308678,0.00012,3]
[339039373,1727164232230,-207.35,0.00012079,2]
[339039374,1727164232240,-150.0,0.00012466,2]
[339039375,1727164232249,-300.0,0.00012498,2]
[339039376,1727164232259,-222.0,0.00012498,2]
[339039377,1727164232268,-499.99,0.00012499,2]
[339039378,1727164232277,-299.2524,0.00012499,2]
[339039379,1727164232286,-2012.02370331,0.00012499,2]
[339039380,1727164232325,-52.40099669,0.00012499,2]
[339039381,1727164232334,-347.337,0.00012499,2]
[339039382,1727164232346,-398.23468509,0.00012499,2]
[339039383,1727164232355,-13.08401435,0.00012532,2]
[339039384,1727164232384,-385.15067065,0.00012532,2]
[339039385,1727164232394,-398.234685,0.00012566,2]
[339039386,1727164232403,-150.0,0.00012598,2]
[339039387,1727164232413,-2442.75507952,0.00012599,2]
[339039388,1727164232438,-6364.1,0.00012599,2]
[339039389,1727164232450,-60764.60654605,0.00012599,2]
[339039390,1727164232461,-479.57301165,0.00012599,2]
[339039391,1727164232473,-1414.90558831,0.00012599,2]
[339039392,1727164232493,-51170.78852618,0.00012599,2]
[339039393,1727164232504,-22051.42234829,0.00012599,2]
[339039394,1727164232515,-17100.6236,0.00012599,2]
[339039395,1727164232524,-1000.0,0.00012599,2]
[339039396,1727164232534,-398.234685,0.00012599,2]
[339039397,1727164232543,-398.234685,0.00012633,2]
[339039398,1727164232552,-398.234685,0.00012666,2]
[339039399,1727164232562,-150.0,0.0001267,2]
[339039400,1727164232574,-398.234685,0.000127,2]
[339039401,1727164232584,-150.0,0.00012719,2]
[339039402,1727164232596,-150.0,0.00012722,2]
[339039404,1727164232606,-398.234685,0.00012733,2]
[339039406,1727164232615,-150.0,0.00012742,2]
[339039408,1727164232625,-398.234685,0.00012767,2]
[339039410,1727164232635,-4278.7615,0.000128,2]
[339039412,1727164232645,-3608.5479,0.000128,2]
[339039413,1727164232655,-398.234685,0.000128,2]
[339039414,1727164232664,-1022.39546787,0.000128,2]
[339039415,1727164232674,-1068.0,0.000128,2]
[339039416,1727164232684,-1176.03853263,0.000128,2]
[339039417,1727164232694,-732.94890413,0.000128,2]
[339039418,1727164232704,-359.0,0.000128,2]
[339039419,1727164232714,-150.0,0.00012803,2]
[339039420,1727164232723,-150.0,0.00012804,2]
[339039421,1727164232732,-500.0,0.00012873,2]
[339039422,1727164232742,-500.0,0.00012873,2]
[339039424,1727164232751,-500.0,0.00012873,2]
[339039426,1727164232761,-233.7156763,0.00012894,2]
[339039428,1727164232771,-201.65125522,0.00012899,2]
[339039430,1727164232780,-238670.44740861,0.000129,2]
[339039432,1727164232790,-33878.76506457,0.000129,2]
[339039434,1727164232802,-568.42,0.000129,2]
[339039440,1727164238366,-1939.80159629,0.000129,2]
[339039444,1727164240097,-14743.1286155,0.000129,2]
[339039445,1727164240205,-1428.000035,0.000129,2]
[339039446,1727164240217,-563.31,0.000129,2]
[339039447,1727164240228,-2847.11698804,0.000129,2]
[339039448,1727164240239,-735.24402019,0.000129,2]
[339039449,1727164240318,-16165.07754689,0.000129,2]
[339039603,1727164243325,-544.41794528,0.00012747,2]
[339039604,1727164243335,-144.88517851,0.00012888,2]
[339039605,1727164243346,-114.44106309,0.00012888,2]
[339039606,1727164243355,-1158.17893691,0.000129,2]
[339039607,1727164243377,-572.66406171,0.000129,2]
[339039653,1727164249747,-11025497.85008289,0.000129,2]
[339039654,1727164249770,-637.99,0.000129,2]
[339039655,1727164249782,-33116.32421483,0.000129,2]
[339039656,1727164401096,500.0,0.00022,120]
[339039657,1727164407111,2000.0,0.00022,120]
[339039658,1727164423255,500.0,0.00022,120]
[339039659,1727164499003,500.0,0.00022,120]
[339039660,1727164577173,500.0,0.00022,120]
[339039661,1727164587354,500.0,0.00022,120]
[339039662,1727164604231,214.0,0.00022,120]
[339039663,1727164645584,210.05,0.00010959,2]
[339039664,1727164767287,205.2,9.742e-05,2]
[339039665,1727164880502,5542.8312541,0.00022,120]
[339039666,1727165003130,500.0,0.00022,120]
[339039667,1727165009674,2000.0,0.00022,120]
[339039668,1727165023823,500.0,0.00022,120]
[339039669,1727165113248,157.1,0.00013143,120]
[339039670,1727165113387,196.51,0.00013143,120]
[339039671,1727165113645,150.5,0.00013143,120]
[339039672,1727165114164,231.68,0.00013133,120]
[339039674,1727165233373,939.0,0.00013143,120]
[339039675,1727165234011,939.0,0.00013133,120]
[339039676,1727165234301,939.0,0.00013123,120]
[339039677,1727165234780,939.0,0.00013143,120]
[339039678,1727165235243,939.0,0.00013133,120]
[339039679,1727165235674,939.0,0.00013123,120]
[339039680,1727165236150,939.0,0.00013143,120]
[339039681,1727165237052,939.0,0.00013133,120]
[339039682,1727165237722,939.0,0.00013143,120]
[339039683,1727165237970,947.0,0.00013133,120]
[339039685,1727165322551,150.0,0.00015,60]
[339039686,1727165322967,150.0,0.00016,60]
[339039687,1727165323433,150.0,0.00017,60]
[339039688,1727165323986,170.944214,0.00018,60]
[339039689,1727165324732,150.0,0.0002,120]
[339039690,1727165325127,160.472107,0.00021,120]
[339039691,1727165342299,194.94,9.646e-05,2]
[339039707,1727165407877,510.0,0.00021917,120]
[339039714,1727165432239,-539.59,0.00011573,2]
[339039715,1727165432295,-460.41,0.00011573,2]
[339039716,1727165432304,-152.09,0.00011595,2]
[339039717,1727165432314,-250.0,0.00011595,2]
[339039718,1727165432323,-250.0,0.0001163,2]
[339039719,1727165432332,-1005.77333648,0.00011647,2]
[339039720,1727165432344,-1149.54666352,0.00011647,2]
[339039721,1727165432353,-192.11,0.00011651,2]
[339039722,1727165432363,-250.0,0.00011698,2]
[339039723,1727165432372,-163.51,0.0001171,2]
[339039724,1727165432382,-2.60213113,0.00011716,2]
[339039725,1727165432394,-4826.29786887,0.00011716,2]
[339039726,1727165432405,-179.14,0.00011757,2]
[339039727,1727165432414,-700.0,0.000119,4]
[339039728,1727165432424,-499.99,0.000119,2]
[339039729,1727165432434,-194.94,0.0001191,2]
[339039730,1727165432443,-890.24,0.00011998,2]
[339039731,1727165432452,-150.99,0.00011998,2]
[339039732,1727165432461,-1400.0,0.00012,4]
[339039733,1727165432471,-852.24188089,0.000121,4]
[339039734,1727165432508,-1247.75811911,0.000121,4]
[339039735,1727165432517,-2900.0,0.000122,4]
[339039736,1727165432527,-150.0,0.000123,2]
[339039737,1727165432537,-2335.54724659,0.000123,4]
[339039738,1727165432559,-1264.45275341,0.000123,4]
[339039739,1727165432569,-700.0,0.000124,4]
[339039740,1727165432578,-168.57,0.00012445,2]
[339039741,1727165432587,-150.0,0.000125,2]
[339039742,1727165432596,-700.0,0.000125,4]
[339039743,1727165432605,-700.0,0.000126,4]
[339039744,1727165432615,-150.0,0.000126,2]
[339039745,1727165432624,-150.0,0.00012632,2]
[339039746,1727165432633,-150.0,0.00012648,2]
[339039747,1727165432642,-297.02494408,0.000127,2]
[339039748,1727165432651,-2948.69834351,0.000127,2]
[339039749,1727165432677,-9873.50675649,0.000127,2]
[339039750,1727165432687,-700.0,0.000127,4]
[339039751,1727165432697,-150.0,0.00012712,2]
[339039752,1727165432706,-185.74943012,0.00012721,2]
[339039753,1727165432716,-150.0,0.00012737,2]
[339039754,1727165432725,-1924.6496,0.000128,2]
[339039755,1727165432734,-300.0,0.000128,2]
[339039756,1727165432744,-37231.4152,0.000128,2]
[339039757,1727165432754,-500.0,0.000128,2]
[339039758,1727165432763,-32696.7935,0.000128,2]
[339039759,1727165432772,-1000.0,0.000128,2]
[339039760,1727165432782,-4881.6624,0.000128,2]
[339039761,1727165432791,-1000.0,0.000128,4]
[339039762,1727165432801,-892.44257121,0.000128,2]
[339039763,1727165432810,-210.55132363,0.000128,2]
[339039764,1727165432820,-150.0,0.0001281,2]
[339039765,1727165432830,-150.0,0.00012823,2]
[339039766,1727165432839,-297.106,0.00012833,2]
[339039767,1727165432848,-500.0,0.00012873,2]
[339039768,1727165432857,-500.0,0.00012873,2]
[339039769,1727165432867,-486.55036777,0.00012899,3]
[339039770,1727165432877,-508.0,0.000129,2]
[339039771,1727165432886,-49328.16257967,0.000129,2]
[339039772,1727165432897,-104628.13244542,0.000129,2]
[339039773,1727165432907,-81851.16826938,0.000129,2]
[339039785,1727165438426,-691.69526512,0.000129,2]
[339039787,1727165438437,-31844.98063836,0.000129,2]
[339039795,1727165438581,-427.20419193,0.000129,2]
[339039796,1727165438791,-530.81317354,0.000129,2]
[339039874,1727165440311,-306.3573891,0.000129,2]
[339039875,1727165440424,-637.6352402,0.000129,2]
[339039876,1727165440436,-442.28667801,0.000129,2]
[339039881,1727165440510,-325279.64436126,0.000129,2]
[339039883,1727165440521,-20721.79715862,0.000129,2]
[339039993,1727165443346,-169272.30430402,0.000129,2]
[339040046,1727165446376,-6364.6,0.000129,2]
[339040047,1727165446484,-1452.92673796,0.000129,2]
[339040050,1727165473158,150.5,0.00013143,120]
[339040051,1727165473616,231.68,0.00013133,120]
[339040052,1727165489742,933.21,0.00022,120]
[339040053,1727165524229,384.1657168,0.00022,120]
[339040054,1727165525165,384.1657168,0.00022,120]
[339040055,1727165525536,384.1657168,0.00022,120]
[339040056,1727165526731,384.1657168,0.00022,120]
[339040057,1727165526992,384.1657168,0.00022,120]
[339040058,1727165527471,384.1657168,0.00022,120]
[339040059,1727165527940,384.1657168,0.00022,120]
[339040060,1727165528518,384.1657168,0.00022,120]
[339040061,1727165528860,384.1657168,0.00022,120]
[339040062,1727165529355,384.1657168,0.00022,120]
[339040063,1727165529850,384.1657168,0.00022,120]
[339040064,1727165530307,384.1657168,0.00022,120]
[339040065,1727165530803,384.1657168,0.00022,120]
[339040066,1727165531319,384.1657168,0.00022,120]
[339040068,1727165561181,444.666666,0.00022,120]
[339040069,1727165562355,444.666666,0.00022,120]
[339040070,1727165562425,444.666666,0.00022,120]
[339040071,1727165562948,444.666666,0.00022,120]
[339040072,1727165563501,444.666666,0.00022,120]
[339040073,1727165564131,444.666666,0.00022,120]
[339040074,1727165564577,444.666666,0.00022,120]
[339040075,1727165564782,444.666666,0.00022,120]
[339040076,1727165565077,444.666666,0.00022,120]
[339040077,1727165565394,444.666666,0.00022,120]
[339040078,1727165565932,444.666666,0.00022,120]
[339040079,1727165566222,444.666666,0.00022,120]
[339040080,1727165566618,444.666666,0.00022,120]
[339040081,1727165567152,444.666666,0.00022,120]
[339040082,1727165567565,444.666666,0.00022,120]
[339040083,1727165570060,444.666666,0.00022,120]
[339040084,1727165583105,444.666666,0.00022,120]
[339040085,1727165583504,444.666666,0.00022,120]
[339040086,1727165584183,444.666666,0.00022,120]
[339040087,1727165584565,444.666666,0.00022,120]
[339040088,1727165593340,939.0,0.00013143,120]
[339040089,1727165594368,939.0,0.00013133,120]
[339040090,1727165594877,939.0,0.00013123,120]
[339040091,1727165595268,662.5123616,0.00022,120]
[339040092,1727165595407,939.0,0.00013143,120]
[339040093,1727165595899,939.0,0.00013133,120]
[339040094,1727165596312,939.0,0.00013123,120]
[339040095,1727165596758,939.0,0.00013143,120]
[339040096,1727165597217,939.0,0.00013133,120]
[339040097,1727165597661,939.0,0.00013143,120]
[339040098,1727165598666,947.0,0.00013133,120]
[339040099,1727165621880,150.0,0.00015,60]
[339040100,1727165622440,150.0,0.0002,120]
[339040101,1727165633690,733.86978793,0.00022,120]
[339040102,1727165714232,196.51,0.00013143,120]
[339040103,1727165833070,157.1,0.00013143,120]
[339040104,1727165856527,1000.0,0.00022,120]
[339040105,1727165947509,300.0,0.00022,120]
[339040106,1727165971214,1119.36,0.00022,120]
[339040108,1727166030505,192.82,9.856e-05,2]
[339040109,1727166153064,1530.71,0.00022,120]
[339040110,1727166167777,765.36,0.00022,120]
[339040111,1727166192513,765.35,0.00022,120]
[339040112,1727166203781,500.0,0.00022,120]
[339040113,1727166210193,2000.0,0.00022,120]
[339040114,1727166222913,500.0,0.00022,120]
[339040116,1727166432723,1848.57975749,0.000163,120]
[339040119,1727166457144,1200.0,0.00021,60]
[339040120,1727166465276,153.63,0.00010959,2]
[339040121,1727166470565,892.77943457,0.0002,120]
[339040122,1727166476905,1200.0,0.00021,60]
[339040123,1727166509291,1600.0,0.00022,120]
[339040125,1727166525039,2133.64894812,0.000145,120]
[339040126,1727166543227,2136.86890915,0.00021,60]
[339040134,1727166589893,510.0,0.00021917,120]
[339040135,1727166609847,183.17,9.784e-05,2]
[339040154,1727166631416,-192.11,0.00011672,2]
[339040156,1727166631425,-97.16452843,0.00011717,2]
[339040157,1727166631486,-80.68547157,0.00011717,2]
[339040158,1727166631495,-179.14,0.00011744,2]
[339040159,1727166631505,-284.75160836,0.00011804,2]
[339040160,1727166631516,-418.54007673,0.00011804,2]
[339040161,1727166631528,-296.70831491,0.00011804,2]
[339040162,1727166631537,-250.0,0.00011897,2]
[339040163,1727166631546,-23.62737745,0.000119,4]
[339040164,1727166631656,-676.37262255,0.000119,4]
[339040165,1727166631667,-212.54,0.0001191,2]
[339040166,1727166631678,-1400.0,0.00012,4]
[339040167,1727166631688,-183.17,0.00012048,2]
[339040168,1727166631699,-2200.0,0.000121,4]
[339040169,1727166631708,-499.99,0.000121,2]
[339040170,1727166631720,-2900.0,0.000122,4]
[339040171,1727166631730,-3700.0,0.000123,4]
[339040172,1727166631740,-700.0,0.000124,4]
[339040173,1727166631753,-158.09,0.00012445,2]
[339040174,1727166631763,-700.0,0.000125,4]
[339040175,1727166631773,-700.0,0.000126,4]
[339040176,1727166631783,-150.0,0.00012648,2]
[339040177,1727166631794,-150.0,0.00012649,2]
[339040178,1727166631804,-150.0,0.00012655,2]
[339040179,1727166631814,-150.0,0.00012664,2]
[339040181,1727166631825,-208.07261695,0.00012681,2]
[339040183,1727166631835,-150.0,0.0001269,2]
[339040185,1727166631844,-150.0,0.00012691,2]
[339040187,1727166631854,-150.0,0.00012691,2]
[339040189,1727166631863,-700.0,0.000127,4]
[339040190,1727166631873,-150.0,0.00012703,2]
[339040191,1727166631882,-150.0,0.00012727,2]
[339040192,1727166631892,-150.0,0.00012736,2]
[339040193,1727166631903,-150.0,0.00012739,2]
[339040194,1727166631913,-150.0,0.00012767,2]
[339040195,1727166631923,-150.0,0.00012772,2]
[339040196,1727166631932,-500.0,0.00012797,2]
[339040197,1727166631942,-150.0,0.00012797,2]
[339040198,1727166631952,-2577.01985024,0.00012798,2]
[339040199,1727166631962,-3012.27503538,0.00012799,2]
[339040200,1727166631971,-330.172,0.000128,2]
[339040201,1727166631981,-1515.0074,0.000128,2]
[339040202,1727166631991,-1000.0,0.000128,2]
[339040203,1727166632000,-7500.0,0.000128,2]
[339040204,1727166632010,-1210.0,0.000128,4]
[339040205,1727166632019,-33242.2145,0.000128,2]
[339040206,1727166632029,-185.71939874,0.000128,2]
[339040207,1727166632039,-179.91941837,0.000128,2]
[339040208,1727166632048,-488.63260276,0.000128,2]
[339040209,1727166632058,-612.6842302,0.000128,2]
[339040210,1727166632067,-2379.91505313,0.000128,2]
[339040211,1727166632078,-150.0,0.00012802,2]
[339040212,1727166632089,-150.0,0.00012803,2]
[339040213,1727166632098,-150.0,0.0001287,2]
[339040214,1727166632108,-500.0,0.00012873,2]
[339040215,1727166632117,-500.0,0.00012873,2]
[339040216,1727166632127,-500.0,0.00012873,2]
[339040217,1727166632136,-1016.9476,0.00012877,2]
[339040218,1727166632147,-150.0,0.00012888,2]
[339040219,1727166632157,-153.0,0.0001289,2]
[339040220,1727166632167,-203212.1250071,0.0001289,2]
[339040221,1727166632176,-153.0,0.0001289,2]
[339040222,1727166632186,-6743.1428013,0.00012893,2]
[339040223,1727166632195,-1215.3505985,0.00012893,2]
[339040224,1727166632205,-893.2164506,0.00012893,2]
[339040225,1727166632215,-301.1916001,0.00012893,2]
[339040226,1727166632225,-300.02,0.00012899,2]
[339040227,1727166632234,-500.0,0.00012899,2]
[339040228,1727166632243,-500.0,0.00012899,2]
[339040229,1727166632253,-500.0,0.00012899,2]
[339040230,1727166632262,-500.0,0.00012899,2]
[339040231,1727166632271,-256.33770822,0.00012899,2]
[339040232,1727166632281,-500.0,0.00012899,2]
[339040233,1727166632292,-500.0,0.00012899,2]
[339040234,1727166632303,-433.98147013,0.00012899,2]
[339040235,1727166632313,-182972.99381428,0.000129,2]
[339040236,1727166632323,-161687.48862891,0.000129,2]
[339040240,1727166637590,-0.64496935,0.000129,2]
[339040241,1727166637601,-2713.17171302,0.000129,2]
[339040242,1727166637755,-283314.02367163,0.000129,2]
[339040243,1727166637766,-5954.93948027,0.000129,2]
[339040244,1727166637778,-1700.51020281,0.000129,2]
[339040245,1727166637857,-3510.72,0.000129,2]
[339040246,1727166637868,-12294.39456971,0.000129,2]
[339040378,1727166639569,-319.19589772,0.000129,2]
[339040685,1727166642523,-653.44587086,0.000129,2]
[339040692,1727166642582,-7993.45022661,0.000129,2]
[339040694,1727166642594,-427.18428536,0.000129,2]
[339040695,1727166642606,-537.88,0.000129,2]
[339040696,1727166642618,-935.05871083,0.000129,2]
[339040697,1727166642629,-1255.06367634,0.000129,2]
[339041330,1727166671870,-16074464.41071631,0.000129,2]
[339041331,1727166671881,-6048063.88712683,0.000129,2]
[339041332,1727166671892,-207.0,0.000129,2]
[339041333,1727166671903,-6872.1898294,0.000129,2]
[339041334,1727166671915,-158.977063,0.000129,2]
[339041335,1727166671927,-240.507799,0.000129,2]
[339041336,1727166671937,-309.360936,0.000129,2]
[339041337,1727166671946,-285.94170093,0.000129,2]
[339041338,1727166671957,-13004.26023484,0.000129,2]
[339041339,1727166671967,-776.66257596,0.000129,2]
[339041340,1727166671976,-1000.0,0.000129,2]
[339041341,1727166671986,-5339.371,0.000129,2]
[339041342,1727166671997,-227.0,0.000129,2]
[339041343,1727166672006,-1591.0444,0.000129,2]
[339041344,1727166672015,-958.4,0.000129,2]
[339041345,1727166672025,-488.1,0.000129,2]
[339041346,1727166672035,-515.0218,0.000129,2]
[339041347,1727166672045,-359.0,0.000129,2]
[339041348,1727166672054,-288.18643328,0.00012902,2]
[339041349,1727166672064,-500.0,0.00012937,2]
[339041350,1727166672073,-500.0,0.00012946,2]
[339041351,1727166672082,-500.0,0.00012946,2]
[339041352,1727166672090,-5800.0,0.00012948,2]
[339041353,1727166672099,-500.0,0.00012955,2]
[339041354,1727166672107,-500.0,0.00012955,2]
[339041355,1727166672116,-500.0,0.00012955,2]
[339041356,1727166672123,-500.0,0.00012955,2]
[339041357,1727166672132,-5800.0,0.00012957,2]
[339041358,1727166672141,-500.0,0.00012964,2]
[339041359,1727166672149,-500.0,0.00012964,2]
[339041360,1727166672157,-500.0,0.00012964,2]
[339041361,1727166672166,-500.0,0.00012964,2]
[339041362,1727166672175,-5800.0,0.00012965,2]
[339041363,1727166672184,-500.0,0.00012973,2]